[Event "*** Titled Tuesday Blitz"]
[Site "Chess.com"]
[Date "2020.04.14"]
[Round "5"]
[White "Rish_97"]
[Black "Kiborg95"]
[Result "0-1"]
[WhiteElo "2607"]
[BlackElo "2791"]
[TimeControl "180+1"]
[EndTime "10:52:07 PDT"]
[Termination "Kiborg95 won by resignation"]

1. e4 {[%clk 0:03:00.1]} 1... d6 {[%clk 0:03:00]} 2. d4 {[%clk 0:02:58.6]} 2...
Nf6 {[%clk 0:03:00.5]} 3. Bd3 {[%clk 0:02:52.3]} 3... e5 {[%clk 0:03:00.4]} 4.
c3 {[%clk 0:02:51.7]} 4... d5 {[%clk 0:03:01.1]} 5. dxe5 {[%clk 0:02:35.7]} 5...
Nxe4 {[%clk 0:03:00.8]} 6. Nf3 {[%clk 0:02:36.2]} 6... Nc5 {[%clk 0:03:00]} 7.
Bc2 {[%clk 0:02:34.8]} 7... Bg4 {[%clk 0:03:00.2]} 8. O-O {[%clk 0:02:33.5]}
8... Nc6 {[%clk 0:03:00.4]} 9. Re1 {[%clk 0:02:27.8]} 9... Qd7 {[%clk
0:02:59.4]} 10. b4 {[%clk 0:02:16.7]} 10... Ne6 {[%clk 0:02:59.5]} 11. Nbd2
{[%clk 0:02:17]} 11... O-O-O {[%clk 0:02:32.4]} 12. b5 {[%clk 0:01:54.7]} 12...
Na5 {[%clk 0:02:32.3]} 13. a4 {[%clk 0:01:25.8]} 13... d4 {[%clk 0:02:23.7]} 14.
cxd4 {[%clk 0:01:11.7]} 14... Nxd4 {[%clk 0:02:24.6]} 15. Bb2 {[%clk 0:01:08]}
15... Bc5 {[%clk 0:02:06.5]} 16. Bc3 {[%clk 0:00:38.3]} 16... Bb6 {[%clk
0:01:56.6]} 17. h3 {[%clk 0:00:27.7]} 17... Bh5 {[%clk 0:01:42.9]} 18. Rc1
{[%clk 0:00:20.4]} 18... Kb8 {[%clk 0:01:05.4]} 19. Bxd4 {[%clk 0:00:18.5]}
19... Bxd4 {[%clk 0:01:03.5]} 20. Qe2 {[%clk 0:00:19]} 20... Bc3 {[%clk
0:00:51.8]} 21. Red1 {[%clk 0:00:18.4]} 21... Bxd2 {[%clk 0:00:47.1]} 22. g4
{[%clk 0:00:06.3]} 22... Bxg4 {[%clk 0:00:43.5]} 23. hxg4 {[%clk 0:00:02.4]}
23... Qxg4+ {[%clk 0:00:44.4]} 24. Kf1 {[%clk 0:00:02.4]} 24... Bxc1 {[%clk
0:00:32.5]} 25. Rxc1 {[%clk 0:00:02.8]} 25... Qc4 {[%clk 0:00:30]} 26. Qxc4
{[%clk 0:00:02.3]} 26... Nxc4 {[%clk 0:00:30.9]} 27. Bb3 {[%clk 0:00:02.9]}
27... Nb6 {[%clk 0:00:23.3]} 28. Bxf7 {[%clk 0:00:02.5]} 28... Nc8 {[%clk
0:00:20.9]} 29. e6 {[%clk 0:00:02.8]} 29... Ne7 {[%clk 0:00:20.2]} 30. a5 {[%clk
0:00:03]} 30... b6 {[%clk 0:00:20]} 31. axb6 {[%clk 0:00:02.8]} 31... axb6
{[%clk 0:00:20.7]} 32. Ne5 {[%clk 0:00:03.5]} 32... Rd5 {[%clk 0:00:21.1]} 33.
Nd7+ {[%clk 0:00:03.8]} 33... Kb7 {[%clk 0:00:21.5]} 34. Ke2 {[%clk 0:00:04.2]}
34... Rd8 {[%clk 0:00:21.2]} 35. Ke3 {[%clk 0:00:04.5]} 35... R5xd7 {[%clk
0:00:21.2]} 36. exd7 {[%clk 0:00:05.4]} 36... Rxd7 {[%clk 0:00:22.1]} 37. Be6
{[%clk 0:00:05.9]} 37... Rd6 {[%clk 0:00:22.5]} 38. Bg4 {[%clk 0:00:06.3]} 38...
Kb8 {[%clk 0:00:21.7]} 39. Bf3 {[%clk 0:00:07.2]} 39... Nd5+ {[%clk 0:00:21.3]}
40. Ke4 {[%clk 0:00:06.7]} 40... Nf6+ {[%clk 0:00:21.6]} 41. Ke5 {[%clk
0:00:06.9]} 41... Nd7+ {[%clk 0:00:19.9]} 42. Kf4 {[%clk 0:00:06.7]} 42... Rf6+
{[%clk 0:00:19.9]} 43. Kg3 {[%clk 0:00:07]} 43... Ne5 {[%clk 0:00:17.7]} 44. Bd5
{[%clk 0:00:06.5]} 44... Kc8 {[%clk 0:00:15.3]} 45. Ra1 {[%clk 0:00:06.1]} 45...
Kd7 {[%clk 0:00:15.4]} 46. Ra8 {[%clk 0:00:06.7]} 46... Kd6 {[%clk 0:00:15.8]}
47. Be4 {[%clk 0:00:06.5]} 47... Kc5 {[%clk 0:00:14]} 48. Rc8 {[%clk 0:00:06.3]}
48... Rf7 {[%clk 0:00:14.3]} 49. Bxh7 {[%clk 0:00:06]} 49... Kxb5 {[%clk
0:00:14.3]} 50. Bg8 {[%clk 0:00:06.9]} 50... Re7 {[%clk 0:00:14.5]} 51. f4
{[%clk 0:00:07.2]} 51... Nc6 {[%clk 0:00:12]} 52. Bd5 {[%clk 0:00:06.4]} 52...
Kc5 {[%clk 0:00:11.4]} 53. Bf3 {[%clk 0:00:05.8]} 53... Nd4 {[%clk 0:00:11.7]}
54. Bh5 {[%clk 0:00:05.6]} 54... b5 {[%clk 0:00:11.8]} 55. Kg4 {[%clk 0:00:06]}
55... b4 {[%clk 0:00:12.2]} 56. Kg5 {[%clk 0:00:06.5]} 56... Kc4 {[%clk
0:00:12.6]} 57. Kg6 {[%clk 0:00:06.7]} 57... c5 {[%clk 0:00:12.9]} 58. f5 {[%clk
0:00:06.3]} 58... b3 {[%clk 0:00:12.9]} 59. Rb8 {[%clk 0:00:06.3]} 59... Kc3
{[%clk 0:00:12.7]} 60. Bg4 {[%clk 0:00:06.4]} 60... c4 {[%clk 0:00:12.8]} 61. f6
{[%clk 0:00:06.4]} 61... gxf6 {[%clk 0:00:13.7]} 62. Kxf6 {[%clk 0:00:06.7]}
62... Re1 {[%clk 0:00:13.8]} 0-1

[Event "*** Titled Tuesday Blitz"]
[Site "Chess.com"]
[Date "2020.04.14"]
[Round "5"]
[White "lifeissofun"]
[Black "KingCrusher275"]
[Result "0-1"]
[WhiteElo "2218"]
[BlackElo "2382"]
[TimeControl "180+1"]
[EndTime "10:52:07 PDT"]
[Termination "KingCrusher275 won by resignation"]

1. e4 {[%clk 0:03:00.9]} 1... c5 {[%clk 0:02:59.2]} 2. Nf3 {[%clk 0:03:01.1]}
2... e6 {[%clk 0:02:59.3]} 3. d4 {[%clk 0:03:02]} 3... cxd4 {[%clk 0:02:59.6]}
4. Nxd4 {[%clk 0:03:02.9]} 4... a6 {[%clk 0:03:00.1]} 5. c4 {[%clk 0:03:03.5]}
5... Nf6 {[%clk 0:02:59.6]} 6. Nc3 {[%clk 0:03:04.1]} 6... Qc7 {[%clk
0:02:59.9]} 7. a3 {[%clk 0:03:03.3]} 7... Be7 {[%clk 0:02:59.6]} 8. Qd3 {[%clk
0:03:03.7]} 8... d6 {[%clk 0:02:59.8]} 9. f3 {[%clk 0:03:01.4]} 9... Nbd7 {[%clk
0:02:59.6]} 10. Be3 {[%clk 0:03:01.7]} 10... b6 {[%clk 0:02:59.8]} 11. b4 {[%clk
0:03:00.9]} 11... Bb7 {[%clk 0:02:58.8]} 12. Rc1 {[%clk 0:03:00.3]} 12... Rc8
{[%clk 0:02:56.9]} 13. Be2 {[%clk 0:02:58.6]} 13... Ne5 {[%clk 0:02:46.5]} 14.
Qd1 {[%clk 0:02:55.2]} 14... Qb8 {[%clk 0:02:33.3]} 15. Qb3 {[%clk 0:02:47.7]}
15... O-O {[%clk 0:02:26.8]} 16. O-O {[%clk 0:02:47.4]} 16... Rfd8 {[%clk
0:02:16.8]} 17. Na4 {[%clk 0:02:45.5]} 17... Ba8 {[%clk 0:02:01.6]} 18. Rfd1
{[%clk 0:02:31.5]} 18... d5 {[%clk 0:01:50.3]} 19. exd5 {[%clk 0:02:22.5]} 19...
exd5 {[%clk 0:01:49.2]} 20. Nf5 {[%clk 0:02:20.7]} 20... Bf8 {[%clk 0:01:42.8]}
21. Nxb6 {[%clk 0:02:01.9]} 21... dxc4 {[%clk 0:01:42.7]} 22. Qc3 {[%clk
0:02:00.2]} 22... Rxd1+ {[%clk 0:01:33]} 23. Rxd1 {[%clk 0:01:58.4]} 23... Re8
{[%clk 0:01:31]} 24. Nxc4 {[%clk 0:01:47.9]} 24... Qc8 {[%clk 0:01:20.8]} 25.
Nfd6 {[%clk 0:01:05.5]} 25... Bxd6 {[%clk 0:01:08]} 26. Rxd6 {[%clk 0:01:06.4]}
26... Nxc4 {[%clk 0:00:57.9]} 27. Bxc4 {[%clk 0:01:07.3]} 27... Nd5 {[%clk
0:00:53.3]} 28. Qd4 {[%clk 0:00:33.9]} 28... Nxe3 {[%clk 0:00:19.5]} 29. Bxf7+
{[%clk 0:00:31.1]} 29... Kxf7 {[%clk 0:00:19.1]} 30. Rd7+ {[%clk 0:00:31.7]}
30... Re7 {[%clk 0:00:19.3]} 31. Qf4+ {[%clk 0:00:21.3]} 31... Ke8 {[%clk
0:00:19.5]} 32. Rxe7+ {[%clk 0:00:21]} 32... Kxe7 {[%clk 0:00:19.9]} 33. Qxe3+
{[%clk 0:00:21.1]} 33... Kf7 {[%clk 0:00:20.4]} 34. Qf4+ {[%clk 0:00:20.1]}
34... Kg8 {[%clk 0:00:20.4]} 35. Qd6 {[%clk 0:00:18.9]} 35... Kh8 {[%clk
0:00:20.6]} 36. h3 {[%clk 0:00:17.7]} 36... Bc6 {[%clk 0:00:21]} 37. Kh2 {[%clk
0:00:17.9]} 37... Bb5 {[%clk 0:00:21.3]} 38. Qe7 {[%clk 0:00:16.3]} 38... Qb8+
{[%clk 0:00:21.4]} 39. Kh1 {[%clk 0:00:14.9]} 39... Qe8 {[%clk 0:00:21.4]} 40.
Qc7 {[%clk 0:00:14.1]} 40... h6 {[%clk 0:00:21.2]} 41. Kh2 {[%clk 0:00:14.4]}
41... Kh7 {[%clk 0:00:20]} 42. Qf4 {[%clk 0:00:13.3]} 42... Qc6 {[%clk
0:00:20.2]} 43. Qf5+ {[%clk 0:00:13.3]} 43... Kh8 {[%clk 0:00:20]} 44. Qf8+
{[%clk 0:00:12.9]} 44... Kh7 {[%clk 0:00:20.5]} 45. Qf5+ {[%clk 0:00:13.5]}
45... Qg6 {[%clk 0:00:21]} 46. Qf8 {[%clk 0:00:14.1]} 46... Qf6 {[%clk
0:00:20.7]} 47. Qb8 {[%clk 0:00:13.1]} 47... Qe6 {[%clk 0:00:21]} 48. Qc7 {[%clk
0:00:13]} 48... Qf5 {[%clk 0:00:21.3]} 49. Qg3 {[%clk 0:00:13.4]} 49... Qd3
{[%clk 0:00:21.3]} 50. Qe5 {[%clk 0:00:11.6]} 50... Qxa3 {[%clk 0:00:19.7]} 51.
Qf5+ {[%clk 0:00:11.8]} 51... Kg8 {[%clk 0:00:19.7]} 52. Qc8+ {[%clk 0:00:12.2]}
52... Kf7 {[%clk 0:00:20.1]} 53. Qf5+ {[%clk 0:00:12.7]} 53... Ke7 {[%clk
0:00:20.2]} 54. Qe5+ {[%clk 0:00:13.2]} 54... Kd7 {[%clk 0:00:20.5]} 55. Qxg7+
{[%clk 0:00:13.2]} 55... Kc6 {[%clk 0:00:20.6]} 56. Qxh6+ {[%clk 0:00:13.8]}
56... Kd5 {[%clk 0:00:21.3]} 57. Qg5+ {[%clk 0:00:13.4]} 57... Kc4 {[%clk
0:00:21.8]} 58. Qc5+ {[%clk 0:00:14.1]} 58... Kb3 {[%clk 0:00:22]} 59. h4 {[%clk
0:00:14.7]} 59... Qxb4 {[%clk 0:00:22.4]} 60. Qd5+ {[%clk 0:00:13.7]} 60... Qc4
{[%clk 0:00:22.5]} 61. Qd1+ {[%clk 0:00:14.1]} 61... Kb4 {[%clk 0:00:22.5]} 62.
h5 {[%clk 0:00:14.6]} 62... Qh4+ {[%clk 0:00:22.5]} 63. Kg1 {[%clk 0:00:14.2]}
63... Qxh5 {[%clk 0:00:22.5]} 64. Qb1+ {[%clk 0:00:14.8]} 64... Kc5 {[%clk
0:00:22.7]} 65. Qe4 {[%clk 0:00:15.7]} 65... Qd5 {[%clk 0:00:21.9]} 66. Qe7+
{[%clk 0:00:14.5]} 66... Kc4 {[%clk 0:00:21.8]} 67. Qa7 {[%clk 0:00:15.4]} 67...
Qc5+ {[%clk 0:00:22]} 68. Qxc5+ {[%clk 0:00:15.5]} 68... Kxc5 {[%clk 0:00:22.9]}
69. f4 {[%clk 0:00:16.1]} 69... a5 {[%clk 0:00:23.3]} 70. f5 {[%clk 0:00:17]}
70... Kd6 {[%clk 0:00:23.4]} 71. f6 {[%clk 0:00:17.9]} 71... a4 {[%clk
0:00:22.8]} 72. f7 {[%clk 0:00:18.8]} 72... Ke7 {[%clk 0:00:23.2]} 73. f8=Q+
{[%clk 0:00:19.1]} 73... Kxf8 {[%clk 0:00:23.5]} 0-1

[Event "*** Titled Tuesday Blitz"]
[Site "Chess.com"]
[Date "2020.04.14"]
[Round "5"]
[White "Sebastian"]
[Black "anushanlv"]
[Result "1-0"]
[WhiteElo "2993"]
[BlackElo "2163"]
[TimeControl "180+1"]
[EndTime "10:52:08 PDT"]
[Termination "Sebastian won by checkmate"]

1. e4 {[%clk 0:03:00.9]} 1... c6 {[%clk 0:02:58.1]} 2. d4 {[%clk 0:03:00.6]}
2... d5 {[%clk 0:02:57.8]} 3. e5 {[%clk 0:03:01.3]} 3... Bf5 {[%clk 0:02:57.4]}
4. Nf3 {[%clk 0:03:01.9]} 4... e6 {[%clk 0:02:57.7]} 5. Be2 {[%clk 0:03:01.9]}
5... c5 {[%clk 0:02:58.1]} 6. Be3 {[%clk 0:03:00.5]} 6... cxd4 {[%clk
0:02:56.7]} 7. Nxd4 {[%clk 0:03:00.4]} 7... Ne7 {[%clk 0:02:57.4]} 8. Nd2 {[%clk
0:03:00.6]} 8... Nbc6 {[%clk 0:02:57.6]} 9. N2f3 {[%clk 0:03:01.1]} 9... Be4
{[%clk 0:02:57.3]} 10. O-O {[%clk 0:03:00.1]} 10... Bxf3 {[%clk 0:02:55.8]} 11.
Nxf3 {[%clk 0:02:59.5]} 11... Ng6 {[%clk 0:02:55.6]} 12. Bd4 {[%clk 0:02:51]}
12... Nxd4 {[%clk 0:02:49.8]} 13. Qxd4 {[%clk 0:02:49.6]} 13... a6 {[%clk
0:02:49.9]} 14. Bd3 {[%clk 0:02:43.2]} 14... Be7 {[%clk 0:02:41.4]} 15. Rfe1
{[%clk 0:02:30.4]} 15... Rc8 {[%clk 0:02:30.9]} 16. c3 {[%clk 0:02:17.9]} 16...
O-O {[%clk 0:01:49.1]} 17. Qg4 {[%clk 0:02:10.1]} 17... Rc6 {[%clk 0:01:15.8]}
18. Nd4 {[%clk 0:02:09.3]} 18... Rb6 {[%clk 0:01:15.8]} 19. Re2 {[%clk
0:02:03.8]} 19... Bc5 {[%clk 0:01:15.3]} 20. Nb3 {[%clk 0:01:43.4]} 20... Rc6
{[%clk 0:01:15.3]} 21. Rae1 {[%clk 0:01:42.2]} 21... Qh4 {[%clk 0:01:15]} 22.
Qxh4 {[%clk 0:01:36.2]} 22... Nxh4 {[%clk 0:01:15.2]} 23. Rd1 {[%clk 0:01:13.3]}
23... Ba7 {[%clk 0:01:14.4]} 24. g3 {[%clk 0:01:12.4]} 24... Ng6 {[%clk
0:01:10.2]} 25. Kg2 {[%clk 0:01:12.8]} 25... b5 {[%clk 0:00:58.9]} 26. a3 {[%clk
0:01:11.7]} 26... Ne7 {[%clk 0:00:56.1]} 27. f4 {[%clk 0:01:11.3]} 27... g6
{[%clk 0:00:55.7]} 28. h4 {[%clk 0:01:01.7]} 28... h5 {[%clk 0:00:55.7]} 29. Kf3
{[%clk 0:01:01.8]} 29... Kg7 {[%clk 0:00:54.9]} 30. g4 {[%clk 0:00:58.4]} 30...
hxg4+ {[%clk 0:00:54.4]} 31. Kxg4 {[%clk 0:00:59.3]} 31... Rh8 {[%clk
0:00:55.1]} 32. Rh1 {[%clk 0:00:56.7]} 32... Rh5 {[%clk 0:00:54.6]} 33. Rg2
{[%clk 0:00:49.2]} 33... Rc8 {[%clk 0:00:54.8]} 34. Nd2 {[%clk 0:00:44.4]} 34...
Nf5 {[%clk 0:00:51.7]} 35. Bxf5 {[%clk 0:00:43.6]} 35... Rxf5 {[%clk 0:00:51.3]}
36. Re2 {[%clk 0:00:36.2]} 36... Bb6 {[%clk 0:00:36.5]} 37. Rh3 {[%clk
0:00:29.3]} 37... Rh5 {[%clk 0:00:31.2]} 38. Nf1 {[%clk 0:00:19.5]} 38... d4
{[%clk 0:00:18.4]} 39. cxd4 {[%clk 0:00:18.4]} 39... Bxd4 {[%clk 0:00:18.7]} 40.
Ng3 {[%clk 0:00:19.1]} 40... Rh7 {[%clk 0:00:18.3]} 41. h5 {[%clk 0:00:19.5]}
41... Rch8 {[%clk 0:00:18.2]} 42. Reh2 {[%clk 0:00:18.9]} 42... a5 {[%clk
0:00:16.2]} 43. Rd2 {[%clk 0:00:15.8]} 43... Bc5 {[%clk 0:00:13.9]} 44. Rd7
{[%clk 0:00:15.8]} 44... Bf2 {[%clk 0:00:12.8]} 45. Ne4 {[%clk 0:00:08.8]} 45...
Be1 {[%clk 0:00:07.8]} 46. Ng5 {[%clk 0:00:08.8]} 46... Rxh5 {[%clk 0:00:07.5]}
47. Rxf7+ {[%clk 0:00:07]} 47... Kg8 {[%clk 0:00:07.9]} 48. Rxh5 {[%clk
0:00:06.7]} 48... gxh5+ {[%clk 0:00:08.3]} 49. Kh3 {[%clk 0:00:05.8]} 49... Bd2
{[%clk 0:00:07.5]} 50. Rf6 {[%clk 0:00:06.2]} 50... Bc1 {[%clk 0:00:05.9]} 51.
Nxe6 {[%clk 0:00:04.8]} 51... Bxb2 {[%clk 0:00:06.1]} 52. Rf8+ {[%clk
0:00:03.6]} 52... Kh7 {[%clk 0:00:06.8]} 53. Ng5+ {[%clk 0:00:03.6]} 53... Kg7
{[%clk 0:00:07.6]} 54. Ne6+ {[%clk 0:00:03.8]} 54... Kh7 {[%clk 0:00:08]} 55.
Rf7+ {[%clk 0:00:04.4]} 55... Kg8 {[%clk 0:00:07.7]} 56. Rg7# {[%clk 0:00:04.6]}
1-0

[Event "*** Titled Tuesday Blitz"]
[Site "Chess.com"]
[Date "2020.04.14"]
[Round "5"]
[White "WorldChampionBulletChess"]
[Black "MusicCityMaster"]
[Result "1-0"]
[WhiteElo "2140"]
[BlackElo "2302"]
[TimeControl "180+1"]
[EndTime "10:52:09 PDT"]
[Termination "WorldChampionBulletChess won by resignation"]

1. d4 {[%clk 0:02:53.3]} 1... Nf6 {[%clk 0:02:59.3]} 2. c4 {[%clk 0:02:53.8]}
2... c5 {[%clk 0:02:59.1]} 3. d5 {[%clk 0:02:53.5]} 3... b5 {[%clk 0:02:59.6]}
4. cxb5 {[%clk 0:02:54.2]} 4... a6 {[%clk 0:03:00.1]} 5. b6 {[%clk 0:02:55.1]}
5... e6 {[%clk 0:02:59.5]} 6. g3 {[%clk 0:02:56]} 6... Nxd5 {[%clk 0:02:56.4]}
7. Bg2 {[%clk 0:02:55.8]} 7... Bb7 {[%clk 0:02:47.3]} 8. Nf3 {[%clk 0:02:44.7]}
8... Nxb6 {[%clk 0:02:46.8]} 9. O-O {[%clk 0:02:44.8]} 9... Be7 {[%clk
0:02:41.3]} 10. Nc3 {[%clk 0:02:36]} 10... d5 {[%clk 0:02:40.8]} 11. e3 {[%clk
0:02:33.6]} 11... O-O {[%clk 0:02:40.1]} 12. b3 {[%clk 0:02:33.1]} 12... Bf6
{[%clk 0:02:37.5]} 13. Bb2 {[%clk 0:02:32.9]} 13... Nc6 {[%clk 0:02:36.5]} 14.
Rc1 {[%clk 0:02:22.5]} 14... Rc8 {[%clk 0:02:35.8]} 15. Qe2 {[%clk 0:02:00.4]}
15... e5 {[%clk 0:02:33.4]} 16. Rfd1 {[%clk 0:01:55.1]} 16... d4 {[%clk
0:02:12.5]} 17. Ne4 {[%clk 0:01:51.2]} 17... Nb4 {[%clk 0:01:54.1]} 18. Nxc5
{[%clk 0:01:36.4]} 18... Rxc5 {[%clk 0:01:32.9]} 19. Rxc5 {[%clk 0:01:37.3]}
19... d3 {[%clk 0:01:31.7]} 20. Qd2 {[%clk 0:01:22.6]} 20... e4 {[%clk
0:01:29.4]} 21. Nd4 {[%clk 0:01:22]} 21... Bxd4 {[%clk 0:01:14.5]} 22. exd4
{[%clk 0:01:21.6]} 22... Nc2 {[%clk 0:01:11.2]} 23. Rxc2 {[%clk 0:00:44.4]}
23... dxc2 {[%clk 0:01:10.1]} 24. Qxc2 {[%clk 0:00:45.3]} 24... f5 {[%clk
0:01:04.5]} 25. Ba3 {[%clk 0:00:43.5]} 25... Rf6 {[%clk 0:01:01.1]} 26. Qc5
{[%clk 0:00:39.7]} 26... Nd5 {[%clk 0:00:55]} 27. Qa7 {[%clk 0:00:18.3]} 27...
Rc6 {[%clk 0:00:42.7]} 28. Qxb7 {[%clk 0:00:16.3]} 28... Rc7 {[%clk 0:00:32.9]}
29. Qxa6 {[%clk 0:00:14.7]} 29... Nc3 {[%clk 0:00:32.8]} 30. Qe6+ {[%clk
0:00:14.6]} 30... Kh8 {[%clk 0:00:31.7]} 31. Rf1 {[%clk 0:00:13.6]} 31... Ne2+
{[%clk 0:00:30.2]} 32. Kh1 {[%clk 0:00:13.6]} 32... Nxd4 {[%clk 0:00:30.8]} 33.
Qe5 {[%clk 0:00:12.4]} 33... Rf7 {[%clk 0:00:21.1]} 34. Rd1 {[%clk 0:00:11.6]}
34... Rd7 {[%clk 0:00:20.4]} 35. Bb2 {[%clk 0:00:11]} 35... Ne6 {[%clk
0:00:18.4]} 36. Rxd7 {[%clk 0:00:09.3]} 36... Qxd7 {[%clk 0:00:18.5]} 37. Qb8+
{[%clk 0:00:08.7]} 37... Nd8 {[%clk 0:00:18.7]} 38. h3 {[%clk 0:00:07.3]} 38...
h6 {[%clk 0:00:17.4]} 39. Kh2 {[%clk 0:00:07.2]} 39... Kh7 {[%clk 0:00:17.6]}
40. Be5 {[%clk 0:00:07.5]} 40... Nf7 {[%clk 0:00:16.6]} 41. Qc7 {[%clk
0:00:07.2]} 41... Qe6 {[%clk 0:00:16.4]} 42. a4 {[%clk 0:00:05.5]} 42... Nxe5
{[%clk 0:00:15.1]} 43. a5 {[%clk 0:00:05.2]} 43... Nf3+ {[%clk 0:00:12.5]} 44.
Bxf3 {[%clk 0:00:04.9]} 44... exf3 {[%clk 0:00:13.2]} 45. Qc2 {[%clk 0:00:03.7]}
45... Qe2 {[%clk 0:00:13.1]} 46. Qc5 {[%clk 0:00:02]} 46... Qf1 {[%clk
0:00:12.4]} 47. Qxf5+ {[%clk 0:00:01.2]} 47... Kg8 {[%clk 0:00:12.6]} 48. Qxf3
{[%clk 0:00:02.1]} 48... Qb5 {[%clk 0:00:10.6]} 49. Qa8+ {[%clk 0:00:02.4]}
49... Kh7 {[%clk 0:00:09.8]} 50. Qe4+ {[%clk 0:00:03.3]} 50... Kg8 {[%clk
0:00:08.9]} 51. Qe6+ {[%clk 0:00:02.9]} 51... Kh7 {[%clk 0:00:08.2]} 52. Qc4
{[%clk 0:00:03.8]} 52... Qxa5 {[%clk 0:00:07.6]} 53. Qe4+ {[%clk 0:00:04.2]}
53... Kg8 {[%clk 0:00:07.6]} 54. b4 {[%clk 0:00:05.1]} 54... Qb6 {[%clk
0:00:07.2]} 55. Qd5+ {[%clk 0:00:04.9]} 55... Kh8 {[%clk 0:00:06.4]} 56. Qc5
{[%clk 0:00:05.8]} 56... Qf6 {[%clk 0:00:06]} 57. b5 {[%clk 0:00:06.1]} 57...
Qf3 {[%clk 0:00:04.9]} 58. b6 {[%clk 0:00:05.8]} 58... Kh7 {[%clk 0:00:05.2]}
59. Qe3 {[%clk 0:00:03]} 59... Qc6 {[%clk 0:00:05.2]} 60. h4 {[%clk 0:00:03.5]}
60... Kh8 {[%clk 0:00:03.7]} 61. f3 {[%clk 0:00:03.7]} 61... Kh7 {[%clk
0:00:04]} 62. Kg2 {[%clk 0:00:04.2]} 62... Qc2+ {[%clk 0:00:03.3]} 63. Kh3
{[%clk 0:00:03.7]} 63... Qc6 {[%clk 0:00:03]} 64. Qe4+ {[%clk 0:00:04.6]} 64...
Qxe4 {[%clk 0:00:03.1]} 65. fxe4 {[%clk 0:00:05.3]} 1-0

[Event "*** Titled Tuesday Blitz"]
[Site "Chess.com"]
[Date "2020.04.14"]
[Round "5"]
[White "Dynamikus"]
[Black "wonderfultime"]
[Result "1-0"]
[WhiteElo "2762"]
[BlackElo "2932"]
[TimeControl "180+1"]
[EndTime "10:52:11 PDT"]
[Termination "Dynamikus won by resignation"]

1. Nf3 {[%clk 0:03:00.9]} 1... Nf6 {[%clk 0:02:55.5]} 2. c4 {[%clk 0:03:00.9]}
2... c6 {[%clk 0:02:55.6]} 3. Nc3 {[%clk 0:03:01.3]} 3... d5 {[%clk 0:02:56.2]}
4. d4 {[%clk 0:03:01.6]} 4... a6 {[%clk 0:02:55.8]} 5. e3 {[%clk 0:03:01.2]}
5... Bf5 {[%clk 0:02:55.8]} 6. Nh4 {[%clk 0:03:01.2]} 6... Be4 {[%clk
0:02:30.3]} 7. f3 {[%clk 0:02:57.3]} 7... Bg6 {[%clk 0:02:30.5]} 8. Qb3 {[%clk
0:02:45.6]} 8... Ra7 {[%clk 0:02:30.1]} 9. a4 {[%clk 0:02:36.4]} 9... e6 {[%clk
0:02:13.6]} 10. a5 {[%clk 0:02:31.9]} 10... Nbd7 {[%clk 0:02:10.3]} 11. Bd2
{[%clk 0:02:20.5]} 11... Bd6 {[%clk 0:02:07.6]} 12. Be2 {[%clk 0:02:12.7]} 12...
Ne4 {[%clk 0:01:24.6]} 13. Nxe4 {[%clk 0:01:50.2]} 13... Bxe4 {[%clk 0:01:22.9]}
14. g3 {[%clk 0:01:46.8]} 14... Bg6 {[%clk 0:01:14.6]} 15. Nxg6 {[%clk
0:01:46.6]} 15... hxg6 {[%clk 0:01:15.5]} 16. Kf2 {[%clk 0:01:44.3]} 16... Qe7
{[%clk 0:01:06.9]} 17. Bd3 {[%clk 0:01:24.7]} 17... O-O {[%clk 0:01:04.1]} 18.
cxd5 {[%clk 0:01:19.7]} 18... exd5 {[%clk 0:00:59]} 19. Kg2 {[%clk 0:01:15.1]}
19... f5 {[%clk 0:00:50.9]} 20. Rae1 {[%clk 0:01:08.7]} 20... Qf7 {[%clk
0:00:42.2]} 21. Rhf1 {[%clk 0:01:05.9]} 21... Kh8 {[%clk 0:00:34.1]} 22. e4
{[%clk 0:01:02.1]} 22... c5 {[%clk 0:00:11.8]} 23. Qxd5 {[%clk 0:00:44.8]} 23...
Qxd5 {[%clk 0:00:11.8]} 24. exd5 {[%clk 0:00:45.7]} 24... cxd4 {[%clk
0:00:12.7]} 25. Re6 {[%clk 0:00:45.5]} 25... Nc5 {[%clk 0:00:10.8]} 26. Rxd6
{[%clk 0:00:40.4]} 26... Nxd3 {[%clk 0:00:10.9]} 27. Rxg6 {[%clk 0:00:37.8]}
27... Raa8 {[%clk 0:00:08]} 28. Bg5 {[%clk 0:00:35.2]} 28... Kh7 {[%clk
0:00:04.8]} 29. Rb6 {[%clk 0:00:32.1]} 29... Rac8 {[%clk 0:00:05]} 30. d6 {[%clk
0:00:20.5]} 30... Rc2+ {[%clk 0:00:05.4]} 31. Kg1 {[%clk 0:00:21]} 31... Re8
{[%clk 0:00:05.8]} 32. Be7 {[%clk 0:00:15.8]} 32... Ne5 {[%clk 0:00:03.6]} 33.
Rxb7 {[%clk 0:00:13.3]} 33... d3 {[%clk 0:00:02.9]} 34. d7 {[%clk 0:00:10.6]}
34... Rxe7 {[%clk 0:00:01.2]} 35. d8=Q {[%clk 0:00:10.2]} 35... Rxb7 {[%clk
0:00:02.1]} 36. Qd5 {[%clk 0:00:07.2]} 36... Rbxb2 {[%clk 0:00:01.8]} 37. f4
{[%clk 0:00:06.3]} 37... Rg2+ {[%clk 0:00:01.4]} 38. Qxg2 {[%clk 0:00:05.6]}
38... Rxg2+ {[%clk 0:00:02.3]} 39. Kxg2 {[%clk 0:00:06.5]} 39... Nc4 {[%clk
0:00:03.2]} 40. Kf2 {[%clk 0:00:06.1]} 40... Nxa5 {[%clk 0:00:01.7]} 41. Rd1
{[%clk 0:00:06.6]} 41... Nc4 {[%clk 0:00:01.9]} 42. Rxd3 {[%clk 0:00:07.1]}
42... a5 {[%clk 0:00:02.5]} 43. Rd4 {[%clk 0:00:07.1]} 43... Nb6 {[%clk
0:00:03]} 44. Rd6 {[%clk 0:00:06.7]} 44... Nc4 {[%clk 0:00:03.2]} 45. Rc6 {[%clk
0:00:06.5]} 45... Nd2 {[%clk 0:00:03.6]} 46. Ke3 {[%clk 0:00:06.1]} 46... Ne4
{[%clk 0:00:04]} 47. Ra6 {[%clk 0:00:05.7]} 47... Nf6 {[%clk 0:00:02.4]} 48.
Rxa5 {[%clk 0:00:05.7]} 48... Ng4+ {[%clk 0:00:02.8]} 49. Ke2 {[%clk 0:00:05.9]}
49... Kg6 {[%clk 0:00:03]} 50. h3 {[%clk 0:00:05.4]} 50... Nf6 {[%clk
0:00:03.4]} 51. Kf3 {[%clk 0:00:05.7]} 51... Nd7 {[%clk 0:00:03.4]} 52. Ra6+
{[%clk 0:00:06.5]} 52... Kh7 {[%clk 0:00:03.7]} 53. g4 {[%clk 0:00:05.3]} 53...
fxg4+ {[%clk 0:00:04.6]} 54. hxg4 {[%clk 0:00:05.8]} 54... Nc5 {[%clk
0:00:05.2]} 55. Rc6 {[%clk 0:00:06]} 55... Nd7 {[%clk 0:00:05.3]} 56. g5 {[%clk
0:00:05.8]} 56... Kg8 {[%clk 0:00:02.7]} 57. Kg4 {[%clk 0:00:06]} 57... Kf7
{[%clk 0:00:02.8]} 58. Rc7 {[%clk 0:00:06.3]} 58... Ke6 {[%clk 0:00:03.1]} 59.
Rxd7 {[%clk 0:00:06.8]} 59... Kxd7 {[%clk 0:00:03.4]} 60. Kf5 {[%clk 0:00:07.7]}
60... Ke7 {[%clk 0:00:03.9]} 61. Kg6 {[%clk 0:00:08.3]} 61... Kf8 {[%clk
0:00:04.5]} 62. Kh7 {[%clk 0:00:08.6]} 62... Kf7 {[%clk 0:00:05]} 63. g6+ {[%clk
0:00:08.5]} 63... Kf6 {[%clk 0:00:05.1]} 64. f5 {[%clk 0:00:09.4]} 1-0